[Event "Titled Tuesday Blitz August 24 2021"]
[White "Eynullayev, Altay"]
[Black "Costachi, Mihnea"]
[WhiteFideId "13413562"]
[BlackFideId "1217518"]
[WhiteElo "2079"]
[BlackElo "2482"]
[Result "0-1"]
[Round "06"]
[TimeControl "180+1"]
[Date "2021.08.24"]
[WhiteClock "0:00:17"]
[BlackClock "0:00:34"]

1. e4 {[%clk 0:03:00]}  e5 {[%clk 0:02:59]} 2. Nf3 {[%clk 0:03:01]}  Nc6 {[%clk 0:03:00]} 3. Bb5 {[%clk 0:03:01]}  a6 {[%clk 0:03:00]} 4. Ba4 {[%clk 0:03:01]}  d6 {[%clk 0:03:01]} 5. O-O {[%clk 0:03:01]}  Bd7 {[%clk 0:03:01]} 6. d4 {[%clk 0:02:57]}  b5 {[%clk 0:03:00]} 7. Bb3 {[%clk 0:02:57]}  Nxd4 {[%clk 0:03:01]} 8. Nxd4 {[%clk 0:02:58]}  exd4 {[%clk 0:03:02]} 9. c3 {[%clk 0:02:58]}  d3 {[%clk 0:03:03]} 10. Qxd3 {[%clk 0:02:53]}  Nf6 {[%clk 0:03:03]} 11. Bg5 {[%clk 0:02:36]}  Be7 {[%clk 0:03:03]} 12. Nd2 {[%clk 0:02:36]}  O-O {[%clk 0:03:01]} 13. f4 {[%clk 0:02:21]}  h6 {[%clk 0:02:49]} 14. Bh4 {[%clk 0:02:21]}  Re8 {[%clk 0:02:16]} 15. e5 {[%clk 0:01:43]}  Nh5 {[%clk 0:01:52]} 16. Bxe7 {[%clk 0:01:27]}  Qxe7 {[%clk 0:01:53]} 17. Qf3 {[%clk 0:01:19]}  g6 {[%clk 0:01:51]} 18. Ne4 {[%clk 0:01:06]}  Bc6 {[%clk 0:01:39]} 19. Nf6+ {[%clk 0:01:03]}  Nxf6 {[%clk 0:01:36]} 20. Qxc6 {[%clk 0:01:04]}  Ng4 {[%clk 0:01:27]} 21. Rae1 {[%clk 0:00:57]}  h5 {[%clk 0:01:16]} 22. h3 {[%clk 0:00:54]}  Nh6 {[%clk 0:01:16]} 23. exd6 {[%clk 0:00:54]}  Qxe1 {[%clk 0:01:16]} 24. Rxe1 {[%clk 0:00:54]}  Rxe1+ {[%clk 0:01:17]} 25. Kf2 {[%clk 0:00:55]}  Rae8 {[%clk 0:01:03]} 26. d7 {[%clk 0:00:38]}  R8e2+ {[%clk 0:01:00]} 27. Kg3 {[%clk 0:00:35]}  Nf5+ {[%clk 0:01:00]} 28. Kh2 {[%clk 0:00:33]}  Ne3 {[%clk 0:01:01]} 29. d8=Q+ {[%clk 0:00:32]}  Kh7 {[%clk 0:01:01]} 30. h4 {[%clk 0:00:16]}  Nf1+ {[%clk 0:00:32]} 31. Kh3 {[%clk 0:00:16]}  Re3+ {[%clk 0:00:32]} 32. Qf3 {[%clk 0:00:16]}  Rxf3+ {[%clk 0:00:33]} 33. gxf3 {[%clk 0:00:17]}  Re2 {[%clk 0:00:34]} 0-1


[Site "https://www.chess.com"]

[Event "Titled Tuesday Blitz August 24 2021"]
[White "Eynullayev, Atilla"]
[Black "Djordjevic, Vuk"]
[WhiteFideId "13413570"]
[BlackFideId "902098"]
[WhiteElo "1997"]
[BlackElo "2463"]
[Result "0-1"]
[Round "06"]
[TimeControl "180+1"]
[Date "2021.08.24"]
[WhiteClock "0:00:12"]
[BlackClock "0:00:28"]

1. e4 {[%clk 0:03:00]}  d5 {[%clk 0:02:59]} 2. exd5 {[%clk 0:02:57]}  Qxd5 {[%clk 0:03:00]} 3. Nc3 {[%clk 0:02:58]}  Qd6 {[%clk 0:03:00]} 4. d4 {[%clk 0:02:58]}  Nf6 {[%clk 0:03:00]} 5. Nf3 {[%clk 0:02:58]}  c6 {[%clk 0:02:59]} 6. h3 {[%clk 0:02:58]}  g6 {[%clk 0:02:58]} 7. Bc4 {[%clk 0:02:58]}  Be6 {[%clk 0:02:57]} 8. Bd3 {[%clk 0:02:53]}  Bg7 {[%clk 0:02:51]} 9. O-O {[%clk 0:02:54]}  O-O {[%clk 0:02:51]} 10. a4 {[%clk 0:02:49]}  Nbd7 {[%clk 0:02:47]} 11. b3 {[%clk 0:02:46]}  c5 {[%clk 0:02:43]} 12. Nb5 {[%clk 0:02:39]}  Qb8 {[%clk 0:02:43]} 13. c4 {[%clk 0:02:24]}  a6 {[%clk 0:02:34]} 14. Nc3 {[%clk 0:02:24]}  Nh5 {[%clk 0:02:23]} 15. Be3 {[%clk 0:02:01]}  cxd4 {[%clk 0:02:18]} 16. Bxd4 {[%clk 0:01:57]}  Nf4 {[%clk 0:02:09]} 17. Bxg7 {[%clk 0:01:47]}  Kxg7 {[%clk 0:02:09]} 18. Bc2 {[%clk 0:01:36]}  Nf6 {[%clk 0:01:58]} 19. Nd4 {[%clk 0:01:30]}  Bxh3 {[%clk 0:01:25]} 20. gxh3 {[%clk 0:01:22]}  Rd8 {[%clk 0:01:25]} 21. Nce2 {[%clk 0:00:20]}  e5 {[%clk 0:01:09]} 22. Nxf4 {[%clk 0:00:20]}  Rxd4 {[%clk 0:01:08]} 23. Nd3 {[%clk 0:00:20]}  e4 {[%clk 0:01:08]} 24. Qe2 {[%clk 0:00:19]}  exd3 {[%clk 0:01:03]} 25. Bxd3 {[%clk 0:00:20]}  Qd6 {[%clk 0:00:53]} 26. Rad1 {[%clk 0:00:19]}  Re8 {[%clk 0:00:53]} 27. Qf3 {[%clk 0:00:18]}  Rf4 {[%clk 0:00:38]} 28. Qxb7 {[%clk 0:00:16]}  Re5 {[%clk 0:00:34]} 29. Bf5 {[%clk 0:00:12]}  Qc5 {[%clk 0:00:28]} 0-1


[Site "https://www.chess.com"]

[Event "Titled Tuesday Blitz August 24 2021"]
[White "Girinath, P.D.S."]
[Black "Goryachkina, Aleksandra"]
[WhiteFideId "5000572"]
[BlackFideId "4147103"]
[WhiteElo "2333"]
[BlackElo "2441"]
[Result "1/2-1/2"]
[Round "06"]
[TimeControl "180+1"]
[Date "2021.08.24"]
[WhiteClock "0:00:05"]
[BlackClock "0:00:03"]

1. e4 {[%clk 0:03:00]}  c5 {[%clk 0:02:59]} 2. Nf3 {[%clk 0:03:00]}  e6 {[%clk 0:02:59]} 3. d3 {[%clk 0:02:57]}  d5 {[%clk 0:02:57]} 4. Qe2 {[%clk 0:02:56]}  dxe4 {[%clk 0:02:42]} 5. dxe4 {[%clk 0:02:55]}  b6 {[%clk 0:02:41]} 6. c3 {[%clk 0:02:47]}  Ba6 {[%clk 0:02:38]} 7. Qc2 {[%clk 0:02:46]}  Bxf1 {[%clk 0:02:37]} 8. Kxf1 {[%clk 0:02:45]}  Nd7 {[%clk 0:02:35]} 9. Bf4 {[%clk 0:02:43]}  Ngf6 {[%clk 0:02:31]} 10. Na3 {[%clk 0:02:41]}  Be7 {[%clk 0:02:25]} 11. Rd1 {[%clk 0:02:38]}  O-O {[%clk 0:02:20]} 12. h3 {[%clk 0:02:17]}  Qc8 {[%clk 0:02:12]} 13. Kg1 {[%clk 0:02:15]}  Qc6 {[%clk 0:02:07]} 14. Kh2 {[%clk 0:02:11]}  Rfd8 {[%clk 0:01:57]} 15. Rhe1 {[%clk 0:02:04]}  Nf8 {[%clk 0:01:45]} 16. Rxd8 {[%clk 0:01:58]}  Rxd8 {[%clk 0:01:45]} 17. Nc4 {[%clk 0:01:58]}  h6 {[%clk 0:01:36]} 18. Nfe5 {[%clk 0:01:53]}  Qb7 {[%clk 0:01:34]} 19. a4 {[%clk 0:01:48]}  N6d7 {[%clk 0:01:23]} 20. f3 {[%clk 0:01:36]}  Nxe5 {[%clk 0:01:22]} 21. Bxe5 {[%clk 0:01:29]}  a6 {[%clk 0:01:12]} 22. Rd1 {[%clk 0:01:23]}  Rxd1 {[%clk 0:01:06]} 23. Qxd1 {[%clk 0:01:22]}  b5 {[%clk 0:01:05]} 24. axb5 {[%clk 0:01:21]}  axb5 {[%clk 0:01:05]} 25. Ne3 {[%clk 0:00:58]}  Ng6 {[%clk 0:00:56]} 26. Bd6 {[%clk 0:00:43]}  Bg5 {[%clk 0:00:56]} 27. Qe2 {[%clk 0:00:30]}  Qd7 {[%clk 0:00:50]} 28. Bg3 {[%clk 0:00:23]}  c4 {[%clk 0:00:49]} 29. Nc2 {[%clk 0:00:20]}  Qd3 {[%clk 0:00:45]} 30. Qf2 {[%clk 0:00:15]}  h5 {[%clk 0:00:42]} 31. Nb4 {[%clk 0:00:13]}  Qd1 {[%clk 0:00:41]} 32. f4 {[%clk 0:00:12]}  Be7 {[%clk 0:00:41]} 33. f5 {[%clk 0:00:10]}  Nf8 {[%clk 0:00:40]} 34. Nc6 {[%clk 0:00:08]}  Bg5 {[%clk 0:00:18]} 35. h4 {[%clk 0:00:07]}  Bd8 {[%clk 0:00:12]} 36. fxe6 {[%clk 0:00:06]}  Nxe6 {[%clk 0:00:12]} 37. Ne5 {[%clk 0:00:06]}  Bf6 {[%clk 0:00:11]} 38. Nf3 {[%clk 0:00:06]}  Qd3 {[%clk 0:00:08]} 39. e5 {[%clk 0:00:05]}  Be7 {[%clk 0:00:08]} 40. Qb6 {[%clk 0:00:05]}  Bc5 {[%clk 0:00:07]} 41. Qxb5 {[%clk 0:00:05]}  Qd1 {[%clk 0:00:06]} 42. Qe8+ {[%clk 0:00:05]}  Bf8 {[%clk 0:00:06]} 43. Ng5 {[%clk 0:00:03]}  Nxg5 {[%clk 0:00:05]} 44. hxg5 {[%clk 0:00:03]}  Qg4 {[%clk 0:00:05]} 45. e6 {[%clk 0:00:03]}  Qxe6 {[%clk 0:00:05]} 46. Qxe6 {[%clk 0:00:03]}  fxe6 {[%clk 0:00:06]} 47. g6 {[%clk 0:00:02]}  Bc5 {[%clk 0:00:04]} 48. Be5 {[%clk 0:00:02]}  Be3 {[%clk 0:00:04]} 49. Kh3 {[%clk 0:00:03]}  Bc1 {[%clk 0:00:05]} 50. Kh4 {[%clk 0:00:03]}  Bxb2 {[%clk 0:00:05]} 51. Kxh5 {[%clk 0:00:04]}  Bc1 {[%clk 0:00:05]} 52. Kg4 {[%clk 0:00:05]}  Kf8 {[%clk 0:00:05]} 53. Kf3 {[%clk 0:00:05]}  Bg5 {[%clk 0:00:04]} 54. Ke4 {[%clk 0:00:05]}  Be7 {[%clk 0:00:02]} 55. Kd4 {[%clk 0:00:05]}  Bf6 {[%clk 0:00:01]} 56. Bxf6 {[%clk 0:00:05]}  gxf6 {[%clk 0:00:02]} 57. Kxc4 {[%clk 0:00:06]}  Kg7 {[%clk 0:00:03]} 58. Kc5 {[%clk 0:00:06]}  Kxg6 {[%clk 0:00:02]} 59. Kd6 {[%clk 0:00:06]}  e5 {[%clk 0:00:02]} 60. c4 {[%clk 0:00:06]}  e4 {[%clk 0:00:03]} 61. c5 {[%clk 0:00:07]}  e3 {[%clk 0:00:03]} 62. c6 {[%clk 0:00:07]}  e2 {[%clk 0:00:04]} 63. c7 {[%clk 0:00:08]}  e1=Q {[%clk 0:00:05]} 64. c8=Q {[%clk 0:00:09]}  Qd2+ {[%clk 0:00:05]} 65. Ke7 {[%clk 0:00:08]}  Qe3+ {[%clk 0:00:05]} 66. Kf8 {[%clk 0:00:08]}  Qh6+ {[%clk 0:00:04]} 67. Ke7 {[%clk 0:00:08]}  Qg7+ {[%clk 0:00:02]} 68. Kd6 {[%clk 0:00:07]}  Kh7 {[%clk 0:00:01]} 69. Qh3+ {[%clk 0:00:06]}  Kg8 {[%clk 0:00:02]} 70. Qe6+ {[%clk 0:00:06]}  Kh7 {[%clk 0:00:02]} 71. Qh3+ {[%clk 0:00:06]}  Kg8 {[%clk 0:00:03]} 72. Qe6+ {[%clk 0:00:05]}  Kh7 {[%clk 0:00:03]} 73. Qh3+ {[%clk 0:00:05]} 1/2-1/2


[Site "https://www.chess.com"]

[Event "Titled Tuesday Blitz August 24 2021"]
[White "Golubev, Mikhail"]
[Black "Rahman, Ziaur"]
[WhiteFideId "14100983"]
[BlackFideId "10200037"]
[WhiteElo "2374"]
[BlackElo "2460"]
[Result "1-0"]
[Round "06"]
[TimeControl "180+1"]
[Date "2021.08.24"]
[WhiteClock "0:00:15"]
[BlackClock "0:00:01"]

1. e4 {[%clk 0:03:00]}  c6 {[%clk 0:02:59]} 2. d4 {[%clk 0:02:59]}  d5 {[%clk 0:02:59]} 3. e5 {[%clk 0:03:00]}  Bf5 {[%clk 0:02:58]} 4. h4 {[%clk 0:03:00]}  h5 {[%clk 0:02:58]} 5. c4 {[%clk 0:03:00]}  e6 {[%clk 0:02:56]} 6. Nc3 {[%clk 0:03:00]}  dxc4 {[%clk 0:02:56]} 7. Bxc4 {[%clk 0:02:56]}  Nd7 {[%clk 0:02:56]} 8. Nge2 {[%clk 0:02:56]}  Be7 {[%clk 0:02:45]} 9. Ng3 {[%clk 0:02:48]}  Bg6 {[%clk 0:02:25]} 10. Be2 {[%clk 0:02:48]}  Bxh4 {[%clk 0:02:19]} 11. Nxh5 {[%clk 0:02:44]}  Bxh5 {[%clk 0:01:37]} 12. Bxh5 {[%clk 0:02:44]}  g6 {[%clk 0:01:26]} 13. Bf3 {[%clk 0:02:32]}  Bf6 {[%clk 0:00:54]} 14. Rxh8 {[%clk 0:02:32]}  Bxh8 {[%clk 0:00:54]} 15. Ne4 {[%clk 0:02:33]}  Qb6 {[%clk 0:00:32]} 16. Nd6+ {[%clk 0:02:31]}  Kf8 {[%clk 0:00:30]} 17. Be4 {[%clk 0:01:58]}  Nxe5 {[%clk 0:00:22]} 18. dxe5 {[%clk 0:01:29]}  Bxe5 {[%clk 0:00:23]} 19. Nxf7 {[%clk 0:01:09]}  Kxf7 {[%clk 0:00:20]} 20. Qc2 {[%clk 0:00:36]}  Ne7 {[%clk 0:00:15]} 21. Bg5 {[%clk 0:00:36]}  Qb4+ {[%clk 0:00:14]} 22. Kf1 {[%clk 0:00:36]}  Bf6 {[%clk 0:00:13]} 23. Bxf6 {[%clk 0:00:33]}  Kxf6 {[%clk 0:00:13]} 24. Rd1 {[%clk 0:00:33]}  Rh8 {[%clk 0:00:12]} 25. g3 {[%clk 0:00:33]}  Qb5+ {[%clk 0:00:12]} 26. Kg1 {[%clk 0:00:31]}  Qh5 {[%clk 0:00:10]} 27. a3 {[%clk 0:00:27]}  Qh2+ {[%clk 0:00:09]} 28. Kf1 {[%clk 0:00:27]}  Qh3+ {[%clk 0:00:09]} 29. Bg2 {[%clk 0:00:26]}  Qf5 {[%clk 0:00:09]} 30. Qc3+ {[%clk 0:00:25]}  Kf7 {[%clk 0:00:09]} 31. Rd3 {[%clk 0:00:24]}  Qf6 {[%clk 0:00:04]} 32. Qb3 {[%clk 0:00:18]}  Kg7 {[%clk 0:00:01]} 33. Qxb7 {[%clk 0:00:15]} 1-0


[Site "https://www.chess.com"]

[Event "Titled Tuesday Blitz August 24 2021"]
[White "Gracia Alvarez, Gerardo Antonio"]
[Black "Harshavardhan G B"]
[WhiteFideId "5109124"]
[BlackFideId "25059009"]
[WhiteElo "2148"]
[BlackElo "1825"]
[Result "0-1"]
[Round "06"]
[TimeControl "180+1"]
[Date "2021.08.24"]
[WhiteClock "0:00:21"]
[BlackClock "0:01:17"]

1. e4 {[%clk 0:03:00]}  e6 {[%clk 0:02:56]} 2. d4 {[%clk 0:03:00]}  d5 {[%clk 0:02:53]} 3. Nd2 {[%clk 0:03:01]}  Nf6 {[%clk 0:02:51]} 4. e5 {[%clk 0:03:00]}  Nfd7 {[%clk 0:02:52]} 5. Bd3 {[%clk 0:03:00]}  c5 {[%clk 0:02:52]} 6. c3 {[%clk 0:03:00]}  Nc6 {[%clk 0:02:53]} 7. Ne2 {[%clk 0:02:59]}  cxd4 {[%clk 0:02:52]} 8. cxd4 {[%clk 0:02:57]}  f6 {[%clk 0:02:53]} 9. exf6 {[%clk 0:02:54]}  Nxf6 {[%clk 0:02:54]} 10. Nf3 {[%clk 0:02:54]}  Bd6 {[%clk 0:02:54]} 11. O-O {[%clk 0:02:50]}  Qc7 {[%clk 0:02:53]} 12. Bd2 {[%clk 0:02:45]}  O-O {[%clk 0:02:52]} 13. Rc1 {[%clk 0:02:45]}  Ne4 {[%clk 0:02:48]} 14. Be3 {[%clk 0:02:32]}  Bd7 {[%clk 0:02:44]} 15. Ng3 {[%clk 0:02:30]}  Nf6 {[%clk 0:02:36]} 16. Bd2 {[%clk 0:02:16]}  Rae8 {[%clk 0:02:27]} 17. Bc3 {[%clk 0:02:13]}  g6 {[%clk 0:02:24]} 18. b4 {[%clk 0:02:02]}  a6 {[%clk 0:02:22]} 19. a4 {[%clk 0:01:42]}  Qb8 {[%clk 0:02:20]} 20. b5 {[%clk 0:01:40]}  axb5 {[%clk 0:02:20]} 21. axb5 {[%clk 0:01:40]}  Ne7 {[%clk 0:02:19]} 22. Ne5 {[%clk 0:01:30]}  Bc8 {[%clk 0:02:11]} 23. Re1 {[%clk 0:01:28]}  Nf5 {[%clk 0:02:11]} 24. Qb3 {[%clk 0:01:16]}  Bxe5 {[%clk 0:01:41]} 25. Rxe5 {[%clk 0:01:10]}  Nxg3 {[%clk 0:01:40]} 26. hxg3 {[%clk 0:01:10]}  Ng4 {[%clk 0:01:40]} 27. Re2 {[%clk 0:01:10]}  Nxf2 {[%clk 0:01:33]} 28. Rxf2 {[%clk 0:00:56]}  Qxg3 {[%clk 0:01:27]} 29. Rxf8+ {[%clk 0:00:55]}  Rxf8 {[%clk 0:01:26]} 30. Qc2 {[%clk 0:00:55]}  Qe3+ {[%clk 0:01:24]} 31. Kh2 {[%clk 0:00:45]}  Rf2 {[%clk 0:01:23]} 32. Qd1 {[%clk 0:00:30]}  e5 {[%clk 0:01:21]} 33. Qe1 {[%clk 0:00:21]}  Qh3+ {[%clk 0:01:16]} 34. Kg1 {[%clk 0:00:21]}  Qxg2# {[%clk 0:01:17]} 0-1


[Site "https://www.chess.com"]

[Event "Titled Tuesday Blitz August 24 2021"]
[White "Holt, Conrad"]
[Black "Srihari L R"]
[WhiteFideId "2034387"]
[BlackFideId "46617116"]
[WhiteElo "2586"]
[BlackElo "2121"]
[Result "0-1"]
[Round "06"]
[TimeControl "180+1"]
[Date "2021.08.24"]
[WhiteClock "0:01:43"]
[BlackClock "0:01:39"]

1. d4 {[%clk 0:03:00]}  d5 {[%clk 0:02:59]} 2. c4 {[%clk 0:03:00]}  e6 {[%clk 0:02:59]} 3. Nc3 {[%clk 0:03:01]}  c5 {[%clk 0:02:59]} 4. cxd5 {[%clk 0:03:00]}  exd5 {[%clk 0:03:00]} 5. Nf3 {[%clk 0:03:00]}  Nc6 {[%clk 0:03:00]} 6. g3 {[%clk 0:02:59]}  Nf6 {[%clk 0:03:00]} 7. Bg2 {[%clk 0:02:59]}  cxd4 {[%clk 0:03:00]} 8. Nxd4 {[%clk 0:02:59]}  Bc5 {[%clk 0:03:00]} 9. Nb3 {[%clk 0:02:58]}  Bb6 {[%clk 0:03:00]} 10. Nxd5 {[%clk 0:02:58]}  Be6 {[%clk 0:02:58]} 11. Bg5 {[%clk 0:02:45]}  Bxd5 {[%clk 0:02:32]} 12. Bxf6 {[%clk 0:02:34]}  Qxf6 {[%clk 0:02:31]} 13. Bxd5 {[%clk 0:02:31]}  Qxf2+ {[%clk 0:02:29]} 14. Kd2 {[%clk 0:02:31]}  Rd8 {[%clk 0:02:28]} 15. Kc1 {[%clk 0:02:28]}  Be3+ {[%clk 0:02:22]} 16. Kb1 {[%clk 0:02:23]}  Qf5+ {[%clk 0:02:21]} 17. Qd3 {[%clk 0:02:23]}  Rxd5 {[%clk 0:02:20]} 18. Qxf5 {[%clk 0:02:22]}  Rxf5 {[%clk 0:02:19]} 19. Kc2 {[%clk 0:02:22]}  Ke7 {[%clk 0:02:16]} 20. Rad1 {[%clk 0:02:19]}  Rd8 {[%clk 0:02:12]} 21. Rxd8 {[%clk 0:02:18]}  Kxd8 {[%clk 0:02:12]} 22. Kd3 {[%clk 0:02:17]}  Bb6 {[%clk 0:02:11]} 23. a3 {[%clk 0:02:15]}  Rf6 {[%clk 0:02:06]} 24. Kc3 {[%clk 0:02:07]}  Re6 {[%clk 0:02:02]} 25. Kd2 {[%clk 0:02:06]}  Nd4 {[%clk 0:02:00]} 26. Nc1 {[%clk 0:02:04]}  Nf5 {[%clk 0:01:47]} 27. Nd3 {[%clk 0:02:03]}  Be3+ {[%clk 0:01:46]} 28. Kd1 {[%clk 0:02:01]}  Nd4 {[%clk 0:01:43]} 29. Rf1 {[%clk 0:01:59]}  f5 {[%clk 0:01:42]} 30. h3 {[%clk 0:01:45]}  Rc6 {[%clk 0:01:41]} 31. g4 {[%clk 0:01:43]}  Rc2 {[%clk 0:01:39]} 0-1


[Site "https://www.chess.com"]

[Event "Titled Tuesday Blitz August 24 2021"]
[White "Ibarra Jerez, Jose Carlos"]
[Black "Grafil, Franz Robert"]
[WhiteFideId "2226332"]
[BlackFideId "5205298"]
[WhiteElo "2602"]
[BlackElo "2211"]
[Result "0-1"]
[Round "06"]
[TimeControl "180+1"]
[Date "2021.08.24"]
[WhiteClock "0:00:08"]
[BlackClock "0:00:05"]

1. d4 {[%clk 0:03:00]}  Nf6 {[%clk 0:02:58]} 2. Bf4 {[%clk 0:02:54]}  d5 {[%clk 0:02:57]} 3. e3 {[%clk 0:02:53]}  c5 {[%clk 0:02:57]} 4. c3 {[%clk 0:02:50]}  Nc6 {[%clk 0:02:57]} 5. Nd2 {[%clk 0:02:48]}  Qb6 {[%clk 0:02:57]} 6. Qb3 {[%clk 0:02:46]}  g6 {[%clk 0:02:36]} 7. Ngf3 {[%clk 0:02:39]}  c4 {[%clk 0:02:35]} 8. Qc2 {[%clk 0:02:37]}  Bf5 {[%clk 0:02:35]} 9. Qc1 {[%clk 0:02:37]}  Nh5 {[%clk 0:02:23]} 10. Bg5 {[%clk 0:02:30]}  h6 {[%clk 0:02:23]} 11. Bh4 {[%clk 0:02:26]}  g5 {[%clk 0:02:24]} 12. Bg3 {[%clk 0:02:27]}  Nxg3 {[%clk 0:02:10]} 13. hxg3 {[%clk 0:02:26]}  Bg7 {[%clk 0:02:11]} 14. e4 {[%clk 0:02:23]}  dxe4 {[%clk 0:02:07]} 15. Nxc4 {[%clk 0:02:23]}  Qc7 {[%clk 0:02:07]} 16. Nfd2 {[%clk 0:02:18]}  Rc8 {[%clk 0:01:51]} 17. Qd1 {[%clk 0:02:12]}  O-O {[%clk 0:01:24]} 18. Ne3 {[%clk 0:02:09]}  Bg6 {[%clk 0:01:23]} 19. g4 {[%clk 0:01:59]}  e6 {[%clk 0:01:07]} 20. b4 {[%clk 0:01:42]}  Ne7 {[%clk 0:01:00]} 21. Nb1 {[%clk 0:00:54]}  Nd5 {[%clk 0:00:49]} 22. Nxd5 {[%clk 0:00:42]}  exd5 {[%clk 0:00:50]} 23. Qb3 {[%clk 0:00:37]}  e3 {[%clk 0:00:47]} 24. fxe3 {[%clk 0:00:33]}  Qg3+ {[%clk 0:00:47]} 25. Kd2 {[%clk 0:00:28]}  Rfe8 {[%clk 0:00:47]} 26. Rh3 {[%clk 0:00:25]}  Qf2+ {[%clk 0:00:32]} 27. Be2 {[%clk 0:00:24]}  Qxg2 {[%clk 0:00:33]} 28. Rf3 {[%clk 0:00:25]}  Be4 {[%clk 0:00:32]} 29. Rf1 {[%clk 0:00:24]}  Bxb1 {[%clk 0:00:19]} 30. Qxb1 {[%clk 0:00:22]}  Rxe3 {[%clk 0:00:20]} 31. Qe1 {[%clk 0:00:13]}  Rexc3 {[%clk 0:00:11]} 32. Qf2 {[%clk 0:00:10]}  Qe4 {[%clk 0:00:09]} 33. Qxf7+ {[%clk 0:00:09]}  Kh8 {[%clk 0:00:09]} 34. Qf3 {[%clk 0:00:07]}  Rxf3 {[%clk 0:00:05]} 35. Rxf3 {[%clk 0:00:07]}  Qxd4+ {[%clk 0:00:05]} 36. Ke1 {[%clk 0:00:06]}  Qxa1+ {[%clk 0:00:06]} 37. Kf2 {[%clk 0:00:07]}  Rf8 {[%clk 0:00:04]} 38. Kg2 {[%clk 0:00:06]}  Rxf3 {[%clk 0:00:04]} 39. Bxf3 {[%clk 0:00:07]}  Qxa2+ {[%clk 0:00:05]} 40. Kh3 {[%clk 0:00:08]}  Qb3 {[%clk 0:00:05]} 0-1


[Site "https://www.chess.com"]

[Event "Titled Tuesday Blitz August 24 2021"]
[White "Indjic, Aleksandar"]
[Black "Maksimovic, Bojan"]
[WhiteFideId "911925"]
[BlackFideId "14408120"]
[WhiteElo "2643"]
[BlackElo "2439"]
[Result "1/2-1/2"]
[Round "06"]
[TimeControl "180+1"]
[Date "2021.08.24"]
[WhiteClock "0:00:06"]
[BlackClock "0:00:04"]

1. d4 {[%clk 0:03:00]}  Nf6 {[%clk 0:02:59]} 2. Nf3 {[%clk 0:02:59]}  g6 {[%clk 0:02:37]} 3. Nc3 {[%clk 0:02:58]}  d5 {[%clk 0:02:34]} 4. Bf4 {[%clk 0:02:58]}  Bg7 {[%clk 0:02:34]} 5. Nb5 {[%clk 0:02:57]}  Na6 {[%clk 0:02:34]} 6. e3 {[%clk 0:02:57]}  c6 {[%clk 0:02:34]} 7. Nc3 {[%clk 0:02:57]}  Nc7 {[%clk 0:02:35]} 8. h3 {[%clk 0:02:57]}  O-O {[%clk 0:02:35]} 9. Bd3 {[%clk 0:02:56]}  Bf5 {[%clk 0:02:26]} 10. Bxf5 {[%clk 0:02:56]}  gxf5 {[%clk 0:02:27]} 11. g4 {[%clk 0:02:53]}  Ne6 {[%clk 0:01:50]} 12. Be5 {[%clk 0:02:47]}  fxg4 {[%clk 0:01:28]} 13. Bxf6 {[%clk 0:02:44]}  gxf3 {[%clk 0:01:08]} 14. Bxg7 {[%clk 0:02:43]}  Nxg7 {[%clk 0:01:07]} 15. Qxf3 {[%clk 0:02:43]}  Qd6 {[%clk 0:01:04]} 16. O-O-O {[%clk 0:02:41]}  Kh8 {[%clk 0:00:56]} 17. Rhg1 {[%clk 0:02:40]}  Qh6 {[%clk 0:00:54]} 18. Rg4 {[%clk 0:02:34]}  Qh5 {[%clk 0:00:37]} 19. Qg2 {[%clk 0:02:28]}  Ne6 {[%clk 0:00:35]} 20. Rg1 {[%clk 0:02:26]}  Qh6 {[%clk 0:00:34]} 21. Qg3 {[%clk 0:02:13]}  f5 {[%clk 0:00:20]} 22. Qe5+ {[%clk 0:01:39]}  Qf6 {[%clk 0:00:20]} 23. Qxf6+ {[%clk 0:01:39]}  Rxf6 {[%clk 0:00:21]} 24. R4g2 {[%clk 0:01:39]}  f4 {[%clk 0:00:20]} 25. Kd2 {[%clk 0:01:39]}  fxe3+ {[%clk 0:00:19]} 26. fxe3 {[%clk 0:01:40]}  Raf8 {[%clk 0:00:18]} 27. Ne2 {[%clk 0:01:39]}  Rf2 {[%clk 0:00:16]} 28. Rg3 {[%clk 0:01:38]}  R2f3 {[%clk 0:00:16]} 29. Kd3 {[%clk 0:01:36]}  Rxg3 {[%clk 0:00:17]} 30. Rxg3 {[%clk 0:01:37]}  Ng7 {[%clk 0:00:17]} 31. e4 {[%clk 0:01:36]}  Nh5 {[%clk 0:00:17]} 32. Rg5 {[%clk 0:01:32]}  Rf3+ {[%clk 0:00:17]} 33. Kd2 {[%clk 0:01:32]}  Rxh3 {[%clk 0:00:18]} 34. exd5 {[%clk 0:01:32]}  cxd5 {[%clk 0:00:18]} 35. Rxd5 {[%clk 0:01:32]}  Rh2 {[%clk 0:00:18]} 36. Rd8+ {[%clk 0:01:28]}  Kg7 {[%clk 0:00:18]} 37. Ke3 {[%clk 0:01:28]}  Nf6 {[%clk 0:00:17]} 38. Kf3 {[%clk 0:01:07]}  Rh3+ {[%clk 0:00:17]} 39. Kg2 {[%clk 0:01:05]}  Re3 {[%clk 0:00:17]} 40. Ng3 {[%clk 0:01:05]}  Kg6 {[%clk 0:00:10]} 41. Rb8 {[%clk 0:01:04]}  h5 {[%clk 0:00:10]} 42. Rxb7 {[%clk 0:00:50]}  h4 {[%clk 0:00:11]} 43. Nf1 {[%clk 0:00:47]}  Re2+ {[%clk 0:00:11]} 44. Kh3 {[%clk 0:00:47]}  Rxc2 {[%clk 0:00:07]} 45. Kxh4 {[%clk 0:00:46]}  Rf2 {[%clk 0:00:07]} 46. Ne3 {[%clk 0:00:40]}  Rf3 {[%clk 0:00:07]} 47. Ng2 {[%clk 0:00:33]}  Rf2 {[%clk 0:00:08]} 48. Kh3 {[%clk 0:00:32]}  Rf3+ {[%clk 0:00:08]} 49. Kh4 {[%clk 0:00:32]}  Rf2 {[%clk 0:00:08]} 50. Ne3 {[%clk 0:00:31]}  Rf4+ {[%clk 0:00:08]} 51. Kg3 {[%clk 0:00:30]}  Rxd4 {[%clk 0:00:08]} 52. Rxa7 {[%clk 0:00:29]}  Rd3 {[%clk 0:00:06]} 53. Kf3 {[%clk 0:00:23]}  e5 {[%clk 0:00:06]} 54. Ke2 {[%clk 0:00:23]}  e4 {[%clk 0:00:06]} 55. b4 {[%clk 0:00:20]}  Nh5 {[%clk 0:00:06]} 56. Ra6+ {[%clk 0:00:18]}  Kf7 {[%clk 0:00:06]} 57. Ng2 {[%clk 0:00:09]}  Ng3+ {[%clk 0:00:06]} 58. Kf2 {[%clk 0:00:09]}  Nf5 {[%clk 0:00:06]} 59. Ra7+ {[%clk 0:00:08]}  Kf6 {[%clk 0:00:04]} 60. b5 {[%clk 0:00:08]}  Rd2+ {[%clk 0:00:05]} 61. Kg1 {[%clk 0:00:09]}  Rb2 {[%clk 0:00:03]} 62. a4 {[%clk 0:00:08]}  e3 {[%clk 0:00:04]} 63. Ra8 {[%clk 0:00:07]}  Rb1+ {[%clk 0:00:04]} 64. Kh2 {[%clk 0:00:07]}  e2 {[%clk 0:00:04]} 65. Re8 {[%clk 0:00:07]}  Nd4 {[%clk 0:00:05]} 66. Kg3 {[%clk 0:00:06]}  Rb4 {[%clk 0:00:05]} 67. Kf2 {[%clk 0:00:06]}  Rxa4 {[%clk 0:00:05]} 68. Re4 {[%clk 0:00:05]}  Rb4 {[%clk 0:00:03]} 69. Ne1 {[%clk 0:00:06]}  Kf5 {[%clk 0:00:03]} 70. Rh4 {[%clk 0:00:06]}  Nc2 {[%clk 0:00:03]} 71. Rxb4 {[%clk 0:00:06]}  Nxb4 {[%clk 0:00:03]} 72. b6 {[%clk 0:00:06]}  Nc6 {[%clk 0:00:04]} 73. b7 {[%clk 0:00:07]}  Ke5 {[%clk 0:00:04]} 74. Nd3+ {[%clk 0:00:07]}  Kd6 {[%clk 0:00:04]} 75. Nb4 {[%clk 0:00:08]}  Nb8 {[%clk 0:00:04]} 76. Kxe2 {[%clk 0:00:06]}  Kc7 {[%clk 0:00:04]} 77. Na6+ {[%clk 0:00:06]}  Kxb7 {[%clk 0:00:04]} 1/2-1/2


[Site "https://www.chess.com"]